fUSD/lending_fUSD_20251030
["ID","MTS","AMOUNT","RATE_DAILY","PERIOD"]
[392667053,1761799833253,-500.0,0.00014999,2]
[392667054,1761799833263,-150.0,0.00014999,2]
[392667055,1761799833272,-284.52204477,0.00014999,2]
[392667056,1761799833282,-150.0,0.00014999,2]
[392667057,1761799833291,-500.0,0.00014999,2]
[392667058,1761799833300,-666.0,0.00014999,2]
[392667059,1761799833309,-2630.0,0.00015,2]
[392667060,1761799833318,-566554.79778613,0.00015,2]
[392667061,1761799833800,-7746.25528234,0.00015,2]
[392667062,1761799837291,150.0,0.00031506,120]
[392667074,1761799837706,-500.0,0.00014699,2]
[392667076,1761799837715,-769.12428674,0.00015,2]
[392667079,1761799837726,-4254.68585677,0.00015,2]
[392667082,1761799837761,-435.68171857,0.00015,2]
[392667083,1761799837817,-3390.9082897,0.00015,2]
[392667084,1761799837929,-497.54255578,0.00015,2]
[392667085,1761799837940,-2506.09710681,0.00015,2]
[392667086,1761799837951,-2343.46774871,0.00015,2]
[392667087,1761799837983,-1008.59522097,0.00015,2]
[392667088,1761799837995,-4999.91255724,0.00015,2]
[392667089,1761799838006,-5254.56915896,0.00015,2]
[392667090,1761799838017,-3055.164867,0.00015,2]
[392667091,1761799838029,-4457.9851755,0.00015,2]
[392667092,1761799838040,-5353.2532445,0.00015,2]
[392667093,1761799838051,-4592.63923609,0.00015,2]
[392667138,1761799843654,-200.0,0.00014847,2]
[392667140,1761799843664,-347.35,0.00015,2]
[392667142,1761799843675,-781.06000001,0.00015,2]
[392667145,1761799843687,-642.00369325,0.00015,2]
[392667147,1761799843699,-2122.92159021,0.00015,2]
[392667149,1761799843711,-1142.73509738,0.00015,2]
[392667151,1761799843723,-521.29609174,0.00015,2]
[392667154,1761799843735,-3294.1655858,0.00015,2]
[392667155,1761799843769,-2418.0,0.00015,2]
[392667223,1761799844667,-923.63456592,0.00015,2]
[392667226,1761799844684,-7455.72717336,0.00015,2]
[392667271,1761799845116,-545.73858892,0.00015,2]
[392667273,1761799845131,-961.99,0.00015,2]
[392667283,1761799845217,-43709.95357576,0.00015,2]
[392667337,1761799845881,-2168.166,0.00015,2]
[392667339,1761799845892,-1093.7,0.00015,2]
[392667341,1761799845903,-383.32467953,0.00015,2]
[392667346,1761799845939,-1083.5,0.00015,2]
[392667359,1761799846048,-2673.2378,0.00015,2]
[392667372,1761799846158,-10917.0,0.00015,2]
[392667476,1761800017504,1000.0,0.00031507,120]
[392667477,1761800029316,380.0,0.00013711,2]
[392667478,1761800272635,150.0,0.00031506,120]
[392667479,1761800293653,150.0,0.00031506,120]
[392667488,1761800472521,452.93,0.00013955,3]
[392667489,1761800535359,15119.3808107,0.00019,30]
[392667490,1761800535444,874.10916553,0.00019,30]
[392667491,1761800653209,166.66,0.00013699,2]
[392667492,1761800667444,5714.71201245,0.00019,30]
[392667494,1761800710529,150.0,0.00013488,2]
[392667495,1761800717676,150.0,0.00013488,2]
[392667498,1761800847602,4331158.77145618,0.00031507,120]
[392667538,1761801032087,-250.0,0.00013977,2]
[392667539,1761801032097,-250.0,0.0001398,2]
[392667540,1761801032108,-195.0,0.00013983,2]
[392667541,1761801032123,-195.0,0.00014008,2]
[392667542,1761801032132,-150.0,0.00014022,2]
[392667543,1761801032142,-163.08,0.00014051,2]
[392667544,1761801032152,-168.0,0.00014416,2]
[392667545,1761801032164,-165.75286402,0.0001461,2]
[392667546,1761801032174,-166.66,0.00014612,2]
[392667547,1761801032185,-216.9840126,0.00014656,2]
[392667548,1761801032195,-168.0,0.0001471,2]
[392667549,1761801032205,-168.0,0.00014747,2]
[392667550,1761801032214,-168.0,0.00014761,2]
[392667551,1761801032224,-1200.0,0.00014797,2]
[392667552,1761801032234,-150.0,0.00014799,2]
[392667553,1761801032245,-300.0,0.00014799,2]
[392667554,1761801032254,-1200.0,0.00014799,2]
[392667555,1761801032264,-300.0,0.00014799,2]
[392667556,1761801032274,-300.0,0.00014799,2]
[392667557,1761801032283,-2999.282169,0.000148,2]
[392667562,1761801032378,-5345.82425833,0.000148,2]
[392667642,1761801038076,-7946.89357267,0.000148,2]
[392667643,1761801038086,-168.77,0.000148,2]
[392667644,1761801038095,-168.77,0.000148,2]
[392667645,1761801038105,-943.82,0.000148,2]
[392667646,1761801038115,-168.77,0.000148,2]
[392667647,1761801038128,-163.08,0.00014832,2]
[392667648,1761801038137,-296.49585,0.0001485,2]
[392667649,1761801038146,-200.0,0.00014866,2]
[392667650,1761801038155,-344.01484951,0.0001487,2]
[392667651,1761801038168,-559.98515049,0.0001487,2]
[392667652,1761801038178,-1187.0,0.0001487,2]
[392667653,1761801038188,-3493.0,0.0001487,2]
[392667654,1761801038199,-1066.47664563,0.0001487,2]
[392667655,1761801038211,-5562.52335437,0.0001487,2]
[392667656,1761801038220,-558.0,0.0001487,2]
[392667657,1761801038230,-200.0,0.0001488,2]
[392667658,1761801038240,-2750.48480483,0.00014899,2]
[392667659,1761801038251,-982.19262699,0.00014899,2]
[392667660,1761801038262,-2217.072792,0.00014899,2]
[392667670,1761801040230,-6419.93,0.0001487,2]
[392667671,1761801040240,-454.97437618,0.00014899,2]
[392667672,1761801040249,-337.44,0.000149,2]
[392667673,1761801040259,-168.77,0.000149,2]
[392667674,1761801040268,-152.37,0.000149,2]
[392667675,1761801040277,-548.44,0.000149,2]
[392667676,1761801040286,-150.0,0.000149,2]
[392667677,1761801040296,-150.0,0.000149,2]
[392667678,1761801040304,-414.6898,0.000149,2]
[392667679,1761801040313,-500.0,0.00014943,2]
[392667680,1761801040323,-500.0,0.00014943,2]
[392667681,1761801040332,-482.2884461,0.00014943,2]
[392667682,1761801040342,-1620.62,0.00014944,2]
[392667683,1761801040351,-151.0,0.00014944,2]
[392667684,1761801040360,-151.0,0.00014944,2]
[392667685,1761801040369,-151.0,0.00014944,2]
[392667686,1761801040378,-151.0,0.00014944,2]
[392667687,1761801040387,-151.0,0.00014944,2]
[392667688,1761801040396,-151.0,0.00014944,2]
[392667689,1761801040405,-500.0,0.00014944,2]
[392667690,1761801040415,-151.0,0.00014944,2]
[392667692,1761801040661,-500.0,0.00014944,2]
[392667693,1761801040671,-151.0,0.00014944,2]
[392667694,1761801040681,-500.0,0.00014944,2]
[392667695,1761801040691,-500.0,0.00014944,2]
[392667696,1761801040701,-151.0,0.00014944,2]
[392667697,1761801040710,-500.0,0.00014944,2]
[392667698,1761801040720,-500.0,0.00014944,2]
[392667699,1761801040729,-151.0,0.00014944,2]
[392667700,1761801040739,-500.0,0.00014944,2]
[392667701,1761801040748,-500.0,0.00014944,2]
[392667702,1761801040758,-151.0,0.00014944,2]
[392667703,1761801040768,-500.0,0.00014944,2]
[392667704,1761801040777,-500.0,0.00014944,2]
[392667705,1761801040787,-151.0,0.00014944,2]
[392667706,1761801040797,-500.0,0.00014944,2]
[392667707,1761801040807,-500.0,0.00014944,2]
[392667708,1761801040816,-151.0,0.00014944,2]
[392667709,1761801040826,-500.0,0.00014944,2]
[392667710,1761801040836,-500.0,0.00014944,2]
[392667711,1761801040845,-151.0,0.00014944,2]
[392667712,1761801040854,-500.0,0.00014944,2]
[392667713,1761801040864,-500.0,0.00014944,2]
[392667714,1761801040873,-151.0,0.00014944,2]
[392667715,1761801040883,-235.02964706,0.00014944,2]
[392667716,1761801040892,-500.0,0.00014944,2]
[392667717,1761801040902,-151.0,0.00014944,2]
[392667718,1761801040911,-500.0,0.00014944,2]
[392667719,1761801040921,-151.0,0.00014944,2]
[392667720,1761801040931,-151.0,0.00014944,2]
[392667721,1761801040940,-551.25967481,0.00014944,2]
[392667722,1761801040952,-151.0,0.00014944,2]
[392667723,1761801040961,-151.0,0.00014944,2]
[392667724,1761801040971,-151.0,0.00014944,2]
[392667725,1761801040980,-151.0,0.00014944,2]
[392667726,1761801040990,-574.12855637,0.00014944,2]
[392667727,1761801040999,-344.56048053,0.00014944,2]
[392667728,1761801041009,-209.40437684,0.00014944,2]
[392667729,1761801041018,-61464.44865079,0.00014953,2]
[392667730,1761801041042,-2182.45,0.00014953,2]
[392667740,1761801043637,-476.014,0.00014953,2]
[392667753,1761801046100,-1307.57,0.00014953,2]
[392667755,1761801136349,500.0,0.00013,2]
[392667756,1761801136632,500.0,0.00013,2]
[392667757,1761801136686,500.0,0.00013,2]
[392667758,1761801136961,500.0,0.00013,2]
[392667759,1761801137014,500.0,0.00013,2]
[392667760,1761801137568,500.0,0.00013,2]
[392667761,1761801137609,500.0,0.00013,2]
[392667762,1761801137732,500.0,0.00012,2]
[392667763,1761801137774,32.65491472,0.00012,2]
[392667764,1761801137796,467.34508528,0.00012,2]
[392667765,1761801138099,500.0,0.00012,2]
[392667766,1761801138138,500.0,0.00012,2]
[392667767,1761801138457,862.74574063,0.00012,2]
[392667768,1761801138499,500.0,0.00012,2]
[392667769,1761801138869,708.07767787,0.00012,2]
[392667770,1761801140552,500.0,0.00013,2]
[392667771,1761801141190,500.0,0.00013,2]
[392667772,1761801141275,954.10472136,0.00012,2]
[392667773,1761801144748,500.0,0.00013,2]
[392667774,1761801144927,223.37544002,0.00013,2]
[392667775,1761801144950,276.62455998,0.00013,2]
[392667776,1761801145078,860.29521921,0.00012,2]
[392667777,1761801145285,500.0,0.00013,2]
[392667778,1761801145627,500.0,0.00013,2]
[392667779,1761801146149,500.0,0.00013,2]
[392667780,1761801146490,500.0,0.00012,2]
[392667781,1761801146854,500.0,0.00012,2]
[392667782,1761801147334,576.86126764,0.00012,2]
[392667783,1761801150611,500.0,0.00013,2]
[392667784,1761801150998,503.47881037,0.00013,2]
[392667785,1761801151034,666.34463413,0.00012,2]
[392667786,1761801152145,332.04417383,0.00013,2]
[392667787,1761801152172,168.26180522,0.00013,2]
[392667788,1761801154653,500.0,0.00013,2]
[392667789,1761801154770,338.96494066,0.00013,2]
[392667790,1761801155024,530.82188303,0.00012,2]
[392667792,1761801445207,500.0,0.00013,2]
[392667793,1761801445578,504.56987191,0.00012,2]
[392667802,1761801913534,150.0,0.00013488,2]
[392667803,1761801913684,256.49150835,0.00013488,2]
[392667804,1761801913751,150.0,0.00013488,2]
[392667808,1761801918460,150.0,0.00013488,2]
[392667809,1761801920812,150.0,0.00013488,2]
[392667810,1761801921973,150.0,0.00013488,2]
[392667815,1761801928080,150.0,0.00013488,2]
[392667817,1761801957880,179.0558188,0.00016,3]
[392667818,1761801958136,179.0558188,0.00016,3]
[392667819,1761801958401,179.0558188,0.00016,3]
[392667820,1761801958685,179.0558188,0.00016,3]
[392667821,1761801958930,179.05581879,0.00016,3]
[392667852,1761802232181,-725.48,0.0001398,2]
[392667855,1761802232192,-195.0,0.00013984,2]
[392667856,1761802232203,-272.73765035,0.00013984,2]
[392667857,1761802232211,-1200.0,0.00013989,2]
[392667858,1761802232220,-300.0,0.00013989,2]
[392667859,1761802232230,-1200.0,0.00013989,2]
[392667860,1761802232239,-1962.67564762,0.0001399,2]
[392667861,1761802232255,-16680.80922281,0.0001399,2]
[392667862,1761802232265,-195.0,0.00013993,2]
[392667863,1761802232274,-5718.0,0.00014,2]
[392667864,1761802232284,-1000.0,0.00014009,2]
[392667865,1761802232294,-386.0,0.00014696,2]
[392667866,1761802232303,-1373.87242,0.000148,2]
[392667867,1761802232313,-2140.2991,0.00014853,2]
[392667868,1761802232322,-496.32625012,0.00014899,2]
[392667869,1761802232332,-496.32625008,0.00014899,2]
[392667870,1761802232341,-496.32625008,0.00014899,2]
[392667871,1761802232350,-496.32625008,0.00014899,2]
[392667872,1761802232359,-496.32625008,0.00014899,2]
[392667873,1761802232369,-496.32625008,0.000149,2]
[392667874,1761802232379,-496.32625008,0.000149,2]
[392667875,1761802232388,-496.32625008,0.000149,2]
[392667876,1761802232397,-496.32625008,0.000149,2]
[392667877,1761802232407,-496.32625008,0.000149,2]
[392667878,1761802232418,-4815.3908023,0.000149,2]
[392667879,1761802232428,-150.0,0.00014941,2]
[392667880,1761802232439,-1485.57,0.00014942,2]
[392667881,1761802232448,-151.0,0.00014942,2]
[392667882,1761802232457,-151.0,0.00014942,2]
[392667883,1761802232467,-151.0,0.00014942,2]
[392667884,1761802232476,-151.0,0.00014942,2]
[392667885,1761802232487,-151.0,0.00014942,2]
[392667886,1761802232497,-151.0,0.00014942,2]
[392667887,1761802232506,-151.0,0.00014942,2]
[392667888,1761802232516,-151.0,0.00014942,2]
[392667889,1761802232525,-151.0,0.00014942,2]
[392667890,1761802232535,-151.0,0.00014942,2]
[392667891,1761802232545,-151.0,0.00014942,2]
[392667892,1761802232555,-151.0,0.00014942,2]
[392667893,1761802232564,-151.0,0.00014942,2]
[392667894,1761802232574,-151.0,0.00014942,2]
[392667895,1761802232583,-151.0,0.00014942,2]
[392667896,1761802232592,-151.0,0.00014942,2]
[392667897,1761802232601,-151.0,0.00014942,2]
[392667898,1761802232611,-151.0,0.00014942,2]
[392667899,1761802232620,-209.40437684,0.00014942,2]
[392667900,1761802232629,-151.0,0.00014942,2]
[392667901,1761802232639,-151.0,0.00014942,2]
[392667902,1761802232648,-508.4293207,0.00014947,2]
[392667903,1761802232658,-500.0,0.00014947,2]
[392667904,1761802232668,-500.0,0.00014947,2]
[392667905,1761802232677,-500.0,0.00014947,2]
[392667906,1761802232686,-572.19596557,0.00014947,2]
[392667907,1761802232695,-330.59795034,0.00014947,2]
[392667908,1761802232705,-151.0,0.00014948,2]
[392667909,1761802232714,-291.10732034,0.0001495,2]
[392667910,1761802232724,-500.0,0.0001495,2]
[392667911,1761802232734,-198.22912994,0.0001495,2]
[392667912,1761802232743,-469.76052534,0.0001495,2]
[392667913,1761802232752,-3301.7393567,0.00014951,2]
[392667914,1761802232766,-56226.0777896,0.00014951,2]
[392667915,1761802232775,-6996.1450962,0.00014951,2]
[392667916,1761802232785,-52303.2201884,0.00014951,2]
[392667918,1761802232795,-13299.0239095,0.00014951,2]
[392667920,1761802232805,-200.0,0.00014953,2]
[392667922,1761802232815,-200.0,0.00014953,2]
[392667924,1761802232824,-200.0,0.00014953,2]
[392667926,1761802232835,-12180.12260783,0.00014953,2]
[392667928,1761802232845,-500.0,0.00014973,2]
[392667930,1761802232854,-500.0,0.00014973,2]
[392667932,1761802232863,-535.98546952,0.00014973,2]
[392667934,1761802232873,-433.02097998,0.00014973,2]
[392667936,1761802232882,-500.0,0.00014973,2]
[392667938,1761802232892,-500.0,0.00014973,2]
[392667939,1761802232902,-159.22174153,0.00014973,2]
[392667940,1761802232912,-500.0,0.00014973,2]
[392667941,1761802232921,-500.0,0.00014973,2]
[392667942,1761802232930,-628.84347828,0.00014973,2]
[392667943,1761802232939,-500.0,0.00014973,2]
[392667944,1761802232948,-500.0,0.00014973,2]
[392667945,1761802232958,-501.03217744,0.00014973,2]
[392667946,1761802232968,-252.41531868,0.00014973,2]
[392667947,1761802232977,-500.0,0.00014973,2]
[392667948,1761802232988,-473.21088675,0.00014973,2]
[392667949,1761802232998,-490.28,0.00014973,2]
[392667950,1761802233010,-386.0,0.00014986,2]
[392667951,1761802233019,-150.0,0.00014986,2]
[392667952,1761802233029,-150.0,0.00014986,2]
[392667953,1761802233038,-150.0,0.00014986,2]
[392667954,1761802233047,-207.60310393,0.0001499,2]
[392667955,1761802233058,-207.60310393,0.0001499,2]
[392667956,1761802233067,-500.0,0.00014992,2]
[392667957,1761802233077,-500.0,0.00014992,2]
[392667958,1761802233086,-508.14024927,0.00014992,2]
[392667959,1761802233095,-1314.0,0.00014995,2]
[392667960,1761802233106,-1594.0,0.00014995,2]
[392667961,1761802233116,-1271.0,0.00014995,2]
[392667962,1761802233125,-819.0,0.00014995,2]
[392667963,1761802233135,-1187.0,0.00014995,2]
[392667964,1761802233144,-904.0,0.00014995,2]
[392667965,1761802233154,-3493.0,0.00014995,2]
[392667966,1761802233164,-6283.865,0.00014995,2]
[392667967,1761802233174,-1062.0016798,0.00014999,2]
[392667968,1761802233183,-462.42648045,0.00014999,2]
[392667969,1761802233192,-500.0,0.00014999,2]
[392667970,1761802233202,-500.0,0.00014999,2]
[392667971,1761802233211,-620.4,0.00014999,2]
[392667972,1761802233220,-287.71358426,0.00014999,2]
[392667973,1761802233230,-523.47855214,0.00014999,2]
[392667974,1761802233239,-500.0,0.00014999,2]
[392667975,1761802233248,-500.0,0.00014999,2]
[392667976,1761802233258,-500.0,0.00014999,2]
[392667977,1761802233267,-500.0,0.00014999,2]
[392667978,1761802233278,-155.0,0.00014999,2]
[392667979,1761802233288,-288.25603492,0.00014999,2]
[392667980,1761802233297,-500.0,0.00014999,2]
[392667981,1761802233305,-500.0,0.00014999,2]
[392667982,1761802233313,-500.0,0.00014999,2]
[392667983,1761802233323,-500.0,0.00014999,2]
[392667984,1761802233332,-500.0,0.00014999,2]
[392667985,1761802233341,-279.88284405,0.00014999,2]
[392667986,1761802233350,-232.32231663,0.00014999,2]
[392667987,1761802233360,-500.0,0.00014999,2]
[392667988,1761802233370,-500.0,0.00014999,2]
[392667989,1761802233379,-205.89,0.00014999,2]
[392667990,1761802233389,-150.89169198,0.00014999,2]
[392667991,1761802233398,-150.0,0.00014999,2]
[392667992,1761802233407,-203.9101928,0.00014999,2]
[392667993,1761802233417,-150.0,0.00014999,2]
[392667994,1761802233426,-500.0,0.00014999,2]
[392667995,1761802233435,-232.63774081,0.00014999,2]
[392667996,1761802233445,-500.0,0.00014999,2]
[392667997,1761802233656,-500.0,0.00014999,2]
[392667998,1761802233667,-150.0,0.00014999,2]
[392667999,1761802233677,-150.0,0.00014999,2]
[392668000,1761802233686,-150.0,0.00014999,2]
[392668001,1761802233695,-500.0,0.00014999,2]
[392668002,1761802233705,-150.0,0.00014999,2]
[392668003,1761802233715,-150.0,0.00014999,2]
[392668004,1761802233724,-500.0,0.00014999,2]
[392668005,1761802233734,-300.0,0.00014999,2]
[392668006,1761802233743,-150.0,0.00014999,2]
[392668007,1761802233753,-150.0,0.00014999,2]
[392668008,1761802233767,-500.0,0.00014999,2]
[392668009,1761802233777,-500.0,0.00014999,2]
[392668010,1761802233786,-150.0,0.00014999,2]
[392668011,1761802233795,-500.0,0.00014999,2]
[392668012,1761802233805,-6083.66141321,0.00014999,2]
[392668013,1761802233814,-150.0,0.00014999,2]
[392668014,1761802233823,-204.70360856,0.00014999,2]
[392668015,1761802233832,-500.0,0.00014999,2]
[392668016,1761802233841,-150.0,0.00014999,2]
[392668017,1761802233851,-150.0,0.00014999,2]
[392668018,1761802233860,-150.0,0.00014999,2]
[392668019,1761802233869,-500.0,0.00014999,2]
[392668020,1761802233879,-500.0,0.00014999,2]
[392668021,1761802233889,-2893.0,0.00015,2]
[392668022,1761802233899,-598855.00837667,0.00015,2]
[392668023,1761802233911,-2026.74436369,0.00015,2]
[392668024,1761802233921,-502.33,0.00015,2]
[392668025,1761802233931,-500.0,0.00015,2]
[392668026,1761802233940,-740.81,0.00015,2]
[392668027,1761802233950,-500.28,0.00015,2]
[392668028,1761802233960,-500.0,0.00015,2]
[392668029,1761802233969,-500.0,0.00015,2]
[392668030,1761802233981,-500.0,0.00015,2]
[392668031,1761802233991,-500.0,0.00015,2]
[392668032,1761802234000,-500.0,0.00015,2]
[392668033,1761802234011,-1000.5,0.00015,2]
[392668034,1761802234020,-150.0,0.00015,2]
[392668035,1761802234031,-150.0,0.00015,2]
[392668036,1761802234041,-596.63174061,0.00015,2]
[392668037,1761802234052,-150.0,0.00015,2]
[392668038,1761802234061,-1258.46541083,0.00015,2]
[392668039,1761802234070,-593.57895976,0.00015,2]
[392668040,1761802234080,-150.0,0.00015,2]
[392668042,1761802234090,-6320.55527502,0.00015,2]
[392668043,1761802234101,-20390.26677838,0.00015,2]
[392668044,1761802234115,-71834.19610925,0.00015,2]
[392668045,1761802234127,-38246.72106059,0.00015,2]
[392668046,1761802234138,-251854.07574971,0.00015,2]
[392668047,1761802234148,-1254.41808677,0.00015,2]
[392668048,1761802234167,-4385.28474669,0.00015,2]
[392668049,1761802234177,-48771.45142665,0.00015,2]
[392668050,1761802234208,-9938.55904102,0.00015,2]
[392668054,1761802238143,-3040.07192633,0.00015,2]
[392668055,1761802240514,-306.552,0.00014995,2]
[392668056,1761802240523,-174.66800003,0.00015,2]
[392668057,1761802240534,-512.27802841,0.00015,2]
[392668065,1761802241414,800.85,0.00013699,2]
[392668120,1761802378764,281.89,7.056e-05,2]
[392668121,1761802380996,281.89,7.427e-05,2]
[392668122,1761802381220,281.89,7.798e-05,2]
[392668123,1761802381438,281.89,8.17e-05,2]
[392668124,1761802381646,281.89,8.541e-05,2]
[392668125,1761802382257,281.89,8.912e-05,2]
[392668126,1761802382314,24.34865599,9.284e-05,2]
[392668127,1761802382337,257.54134401,9.284e-05,2]
[392668128,1761802382430,281.89,9.655e-05,2]
[392668129,1761802382847,281.89,0.00010027,2]
[392668130,1761802383051,281.89,0.00010398,2]
[392668131,1761802383297,281.89,0.00010769,2]
[392668132,1761802383501,281.89,0.00011141,2]
[392668133,1761802383700,281.89,0.00011512,2]
[392668134,1761802383900,281.89,0.00011883,2]
[392668135,1761802384108,281.89,0.00012255,2]
[392668136,1761802384317,281.89,0.00012626,2]
[392668137,1761802384529,281.89,0.00012997,2]
[392668138,1761802384942,281.89,0.00013369,2]
[392668141,1761802791837,1000.0,0.00016,3]
[392668142,1761803055660,-281.89,0.0001374,2]
[392668143,1761803055682,-250.0,0.00013759,2]
[392668144,1761803055703,-59.12377268,0.00013777,2]
[392668145,1761803133322,150.0,0.00013488,2]
[392668154,1761803241512,591.0,0.00013,2]
[392668160,1761803431363,-195.0,0.0001381,2]
[392668161,1761803431373,-250.0,0.00013811,2]
[392668162,1761803431382,-150.0,0.00013811,2]
[392668163,1761803431392,-200.0,0.00013847,2]
[392668164,1761803431401,-195.0,0.00013855,2]
[392668165,1761803431410,-250.0,0.00013869,2]
[392668166,1761803431421,-163.97,0.00013889,2]
[392668167,1761803431430,-447.27,0.00013919,2]
[392668168,1761803431440,-200.0,0.0001399,2]
[392668169,1761803431449,-439.87,0.00014015,2]
[392668170,1761803431459,-1911.26,0.0001404,2]
[392668171,1761803431468,-281.89,0.00014111,2]
[392668172,1761803431477,-257.67,0.00014139,2]
[392668173,1761803431487,-292.0,0.00014619,2]
[392668174,1761803431496,-230.52776203,0.00014696,2]
[392668175,1761803431512,-969.47223797,0.00014696,2]
[392668176,1761803431521,-1200.0,0.00014697,2]
[392668177,1761803431530,-300.0,0.00014697,2]
[392668178,1761803431540,-150.0,0.00014699,2]
[392668179,1761803431549,-300.0,0.00014699,2]
[392668180,1761803431557,-300.0,0.00014699,2]
[392668181,1761803431565,-548.44,0.000147,2]
[392668182,1761803431575,-1203.25,0.000147,2]
[392668183,1761803431584,-339.53,0.000147,2]
[392668184,1761803431593,-414.99,0.000147,2]
[392668185,1761803431603,-150.0,0.000147,2]
[392668186,1761803431612,-168.77,0.000147,2]
[392668187,1761803431621,-548.44,0.000147,2]
[392668188,1761803431630,-150.0,0.000147,2]
[392668189,1761803431639,-176.63,0.000147,2]
[392668190,1761803431649,-548.44,0.000147,2]
[392668191,1761803431658,-414.99,0.000147,2]
[392668192,1761803431667,-1203.25,0.000147,2]
[392668193,1761803431677,-168.77,0.000147,2]
[392668194,1761803431687,-548.44,0.000147,2]
[392668195,1761803431697,-150.0,0.000147,2]
[392668196,1761803431709,-168.77,0.000147,2]
[392668198,1761803431718,-548.44,0.000147,2]
[392668200,1761803431727,-272.37776203,0.000147,2]
[392668202,1761803431747,-930.87223797,0.000147,2]
[392668204,1761803431757,-176.63,0.000147,2]
[392668206,1761803431766,-414.99,0.000147,2]
[392668208,1761803431776,-548.44,0.000147,2]
[392668210,1761803431785,-168.77,0.000147,2]
[392668211,1761803431795,-176.63,0.000147,2]
[392668213,1761803431804,-548.44,0.000147,2]
[392668215,1761803431814,-414.99,0.000147,2]
[392668217,1761803431823,-168.77,0.000147,2]
[392668219,1761803431833,-1203.25,0.000147,2]
[392668221,1761803431842,-150.0,0.000147,2]
[392668223,1761803431852,-168.77,0.000147,2]
[392668225,1761803431861,-548.44,0.000147,2]
[392668227,1761803431871,-1203.25,0.000147,2]
[392668229,1761803431881,-414.99,0.000147,2]
[392668231,1761803431890,-150.0,0.000147,2]
[392668233,1761803431899,-176.63,0.000147,2]
[392668235,1761803431910,-168.77,0.000147,2]
[392668237,1761803431919,-548.44,0.000147,2]
[392668239,1761803431929,-168.77,0.000147,2]
[392668241,1761803431939,-548.44,0.000147,2]
[392668243,1761803431948,-548.44,0.000147,2]
[392668245,1761803431958,-1203.25,0.000147,2]
[392668246,1761803431967,-176.63,0.000147,2]
[392668248,1761803431977,-168.77,0.000147,2]
[392668250,1761803431986,-414.99,0.000147,2]
[392668252,1761803431995,-150.0,0.000147,2]
[392668254,1761803432005,-1384.41,0.000147,2]
[392668256,1761803432014,-353.26,0.000147,2]
[392668258,1761803432023,-414.99,0.000147,2]
[392668260,1761803432032,-150.0,0.000147,2]
[392668262,1761803432042,-414.99,0.000147,2]
[392668264,1761803432050,-150.0,0.000147,2]
[392668266,1761803432059,-415.1,0.000147,2]
[392668268,1761803432069,-300.0,0.000147,2]
[392668270,1761803432078,-150.0,0.000147,2]
[392668272,1761803432087,-150.12,0.000147,2]